bitfinex/quotes_BTCUSD_20260126
["timestamp","ask_amount","ask_price","bid_price","bid_amount"]
[1769437068460,0.03,87738.0,87728.0,0.68224749]
[1769437068698,0.38326557,87740.0,87728.0,0.68224749]
[1769437068699,0.03,87737.0,87728.0,0.68224749]
[1769437069382,0.03,87737.0,87729.0,0.02315521]
[1769437069607,0.03,87737.0,87724.0,0.01139938]
[1769437069608,0.03,87737.0,87730.0,0.70831518]
[1769437069843,0.03,87736.0,87721.0,0.69655974]
[1769437070047,0.03,87736.0,87730.0,0.001]
[1769437070410,0.03,87736.0,87727.0,0.68515997]
[1769437070610,0.03,87736.0,87728.0,0.17516]
[1769437070840,0.71480527,87748.0,87722.0,0.01139964]
[1769437070841,0.03,87735.0,87730.0,0.70931518]
[1769437071039,0.03,87735.0,87731.0,0.02315521]
[1769437071239,0.03,87735.0,87731.0,0.70831518]
[1769437071679,0.03,87739.0,87732.0,0.2208]
[1769437071911,0.38326557,87740.0,87732.0,0.2208]
[1769437072179,0.38326557,87750.0,87733.0,0.01139821]
[1769437072418,0.11287764,87749.0,87743.0,0.02315521]
[1769437072607,0.47385144,87760.0,87736.0,0.01139782]
[1769437072608,0.11287764,87748.0,87744.0,0.02315521]
[1769437072839,0.03,87747.0,87745.0,0.17516]
[1769437073367,0.38326557,87755.0,87745.0,0.17516]
[1769437073573,0.11293818,87754.0,87745.0,0.17516]
[1769437073782,0.03,87752.0,87745.0,0.17516]
[1769437073983,0.03,87750.0,87745.0,0.17516]
[1769437074189,0.03,87748.0,87745.0,0.17516]
[1769437074432,0.03,87746.0,87745.0,0.17516]
[1769437074675,0.03,87746.0,87745.0,0.17616]
[1769437075374,0.14301098,87746.0,87745.0,0.17616]
[1769437075902,0.14301098,87746.0,87745.0,0.17516]
[1769437076305,0.14301098,87746.0,87745.0,0.17616]
[1769437076653,0.14301098,87746.0,87745.0,0.17516]
[1769437077170,0.14301098,87746.0,87745.0,0.17616]
[1769437077573,0.14301098,87746.0,87745.0,0.17516]
[1769437077791,0.14301098,87746.0,87745.0,0.17616]
[1769437079223,0.14301098,87746.0,87745.0,0.17516]
[1769437079615,0.14301098,87746.0,87745.0,0.17616]
[1769437080469,0.03,87754.0,87745.0,0.17616]
[1769437081096,0.03,87754.0,87745.0,0.17516]
[1769437081300,0.68509712,87754.0,87745.0,0.17516]
[1769437082343,0.68509712,87754.0,87745.0,0.17616]
[1769437082852,0.68509712,87754.0,87745.0,0.17516]
[1769437083457,0.71972611,87754.0,87745.0,0.17516]
[1769437084628,0.06462899,87754.0,87745.0,0.17516]
[1769437084841,0.03,87756.0,87745.0,0.17516]
[1769437085047,0.03,87756.0,87749.0,0.68515997]
[1769437085226,0.03,87756.0,87750.0,0.02315521]
[1769437085833,0.03,87759.0,87750.0,0.02315521]
[1769437087376,0.03,87759.0,87751.0,0.02315521]
[1769437087571,0.49324111,87770.0,87753.0,0.02315521]
[1769437087749,0.38326557,87761.0,87753.0,0.02315521]
[1769437088671,0.03,87760.0,87753.0,0.02315521]
[1769437089493,0.03,87756.0,87754.0,0.17516]
[1769437090529,0.03,87755.0,87754.0,0.17516]
[1769437091579,0.03,87763.0,87754.0,0.17516]
[1769437091959,0.03,87763.0,87751.0,0.01139588]
[1769437092199,0.11306605,87762.0,87752.0,0.17516]
[1769437092443,0.81977069,87764.0,87752.0,0.17516]
[1769437092444,0.14306605,87761.0,87752.0,0.17516]
[1769437092643,0.03,87759.0,87752.0,0.17516]
[1769437093495,0.03,87759.0,87755.0,0.0569767]
[1769437093770,0.03,87769.0,87759.0,0.00999999]
[1769437093967,0.03,87767.0,87758.0,0.02315521]
[1769437094174,0.03,87765.0,87758.0,0.02315521]
[1769437095225,0.03,87769.0,87758.0,0.02315521]
[1769437095436,0.03,87767.0,87758.0,0.02315521]
[1769437095615,0.38326557,87770.0,87758.0,0.02315521]
[1769437095616,0.03,87765.0,87758.0,0.06836953]
[1769437095850,0.03,87765.0,87759.0,0.09152407]
[1769437096060,0.38326557,87770.0,87755.0,0.68615997]
[1769437096268,0.15138167,87769.0,87756.0,0.02315521]
[1769437096468,0.11305511,87768.0,87756.0,0.02315521]
[1769437096674,0.03,87766.0,87756.0,0.08013134]
[1769437096911,0.03,87766.0,87757.0,0.0113951]
[1769437097324,0.03,87766.0,87756.0,0.02315521]
[1769437097770,0.03,87765.0,87756.0,0.02315521]
[1769437098191,0.03,87765.0,87756.0,0.0239672]
[1769437098605,0.03,87768.0,87756.0,0.01139523]
[1769437098814,0.03,87764.0,87756.0,0.02386763]
[1769437099154,0.03,87764.0,87758.0,0.01139497]
[1769437099357,0.09058587,87781.0,87765.0,0.01139406]
[1769437099571,0.5495615,87779.0,87768.0,0.01139367]
[1769437099772,0.14305638,87778.0,87769.0,0.01139354]
[1769437099975,0.03,87776.0,87770.0,0.01139341]
[1769437100171,0.03,87774.0,87770.0,0.03526104]
[1769437100379,0.11305638,87773.0,87771.0,0.06835958]
[1769437100585,0.38326557,87780.0,87771.0,0.01139328]
[1769437100846,0.38326557,87780.0,87770.0,0.02386763]
[1769437100847,0.14304544,87779.0,87770.0,0.02386763]
[1769437100971,0.03,87777.0,87772.0,0.01139315]
[1769437101193,0.03,87775.0,87772.0,0.0683587]
[1769437101406,0.03,87773.0,87772.0,0.06835892]
[1769437101722,0.38326557,87780.0,87772.0,0.01139315]
[1769437101943,0.38326557,87780.0,87773.0,0.06835778]
[1769437102161,0.38326557,87780.0,87773.0,0.01139302]
[1769437102499,0.03,87779.0,87775.0,0.01139276]
[1769437102715,0.03,87779.0,87776.0,0.01139263]
[1769437102924,0.03,87779.0,87775.0,0.06835648]
[1769437103117,0.03,87779.0,87776.0,0.01139263]
[1769437103355,0.03,87779.0,87775.0,0.01139276]
[1769437103556,0.03,87779.0,87775.0,0.06835647]
[1769437103772,0.03,87779.0,87776.0,0.01139263]
[1769437103986,0.03,87779.0,87777.0,0.17516]
[1769437104553,0.03,87778.0,87777.0,0.17516]
[1769437105214,0.09058587,87794.0,87784.0,0.01139159]
[1769437105536,0.38326557,87794.0,87784.0,0.01139159]
[1769437105712,0.03,87793.0,87785.0,0.02386763]
[1769437105886,0.03,87793.0,87786.0,0.02386763]
[1769437106618,0.03,87792.0,87786.0,0.02386763]
[1769437106932,0.03,87792.0,87786.0,0.68242412]
[1769437107134,0.03,87792.0,87789.0,0.02386763]
[1769437107355,0.03,87792.0,87790.0,0.02386763]
[1769437107750,0.03,87791.0,87790.0,0.02386763]
[1769437108731,0.0002772,87797.0,87790.0,0.02386763]
[1769437109640,0.001,87791.0,87790.0,0.02386763]
[1769437110044,0.001,87791.0,87790.0,0.70629175]
[1769437110859,0.0002772,87797.0,87790.0,0.70629175]
[1769437111204,0.0012772,87797.0,87790.0,0.70629175]
[1769437111537,0.0012772,87797.0,87790.0,0.02386763]
[1769437111729,0.0002772,87797.0,87793.0,0.68242412]
[1769437111937,0.03,87790.0,87774.0,0.01139289]
[1769437112137,0.03,87788.0,87771.0,0.0456]
[1769437112337,0.03,87780.0,87771.0,0.0456]
[1769437112575,0.67400943,87788.0,87771.0,0.0456]
[1769437112773,0.38326557,87781.0,87771.0,0.0456]
[1769437114164,0.001,87780.0,87771.0,0.0456]
[1769437114780,0.38326557,87781.0,87771.0,0.0456]
[1769437114947,0.38426557,87781.0,87771.0,0.0456]
[1769437115601,0.38326557,87781.0,87771.0,0.0456]
[1769437117510,0.38426557,87781.0,87771.0,0.0456]
[1769437117879,0.38326557,87781.0,87771.0,0.0456]
[1769437118210,0.38426557,87781.0,87771.0,0.0456]
[1769437118791,0.38326557,87781.0,87771.0,0.0456]
[1769437118996,0.38426557,87781.0,87771.0,0.0456]
[1769437120361,0.38326557,87781.0,87771.0,0.0456]
[1769437120561,0.38426557,87781.0,87771.0,0.0456]
[1769437121148,0.38326557,87781.0,87771.0,0.0456]
[1769437121350,0.11295379,87780.0,87771.0,0.0456]
[1769437121515,0.38426557,87781.0,87771.0,0.0456]
[1769437121715,0.11295379,87780.0,87771.0,0.0456]
[1769437121926,0.38326557,87781.0,87771.0,0.0456]
[1769437122160,0.11295379,87780.0,87771.0,0.0456]
[1769437122366,0.38426557,87781.0,87771.0,0.0456]
[1769437122570,0.11297557,87780.0,87771.0,0.0456]
[1769437122788,0.38426557,87781.0,87771.0,0.0456]
[1769437122989,0.38426557,87781.0,87771.0,0.72802412]
[1769437123207,0.38426557,87781.0,87772.0,0.70629175]
[1769437123400,0.38326557,87781.0,87772.0,0.73022668]
[1769437123841,0.031,87780.0,87772.0,0.70629175]
[1769437124212,0.38326557,87790.0,87776.0,0.68242412]
[1769437124383,0.38326557,87790.0,87778.0,0.68242412]
[1769437124585,0.38326557,87790.0,87778.0,0.70629175]
[1769437124802,0.03,87789.0,87778.0,0.70629175]
[1769437125409,0.70598943,87789.0,87775.0,0.17512]
[1769437125607,0.03,87784.0,87775.0,0.17512]
[1769437126993,0.03,87784.0,87775.0,0.05241686]
[1769437127596,0.03,87783.0,87775.0,0.05241686]
[1769437128715,0.031,87784.0,87775.0,0.05241686]
[1769437128941,0.03,87782.0,87759.0,0.01139484]
[1769437129130,0.03,87769.0,87761.0,0.01139458]
[1769437129329,0.03,87769.0,87761.0,0.65014361]
[1769437129563,0.03,87769.0,87761.0,0.68629601]
[1769437129921,0.03,87769.0,87763.0,0.65014361]
[1769437130128,0.03,87768.0,87765.0,0.65014361]
[1769437130532,0.38295012,87773.0,87765.0,0.65014361]
[1769437130950,0.38295012,87773.0,87765.0,0.66153767]
[1769437131291,0.03,87772.0,87766.0,0.01139393]
[1769437131525,0.03,87772.0,87765.0,0.65114361]
[1769437131663,0.03,87772.0,87765.0,0.66253767]
[1769437132066,0.03,87772.0,87765.0,0.65114361]
[1769437132395,0.03,87771.0,87765.0,0.66253767]
[1769437132598,0.03,87771.0,87765.0,0.66153767]
[1769437133024,0.03,87771.0,87767.0,0.0113938]
[1769437133179,0.03,87775.0,87767.0,0.71850639]
[1769437133386,0.03,87775.0,87767.0,0.71850599]
[1769437133686,0.03,87775.0,87769.0,0.01139354]
[1769437134561,0.03,87774.0,87767.0,0.0113938]
[1769437134708,0.24510436,87779.0,87768.0,0.01139367]
[1769437134911,0.03,87772.0,87769.0,0.01139354]
[1769437135673,0.03,87772.0,87769.0,0.06836099]
[1769437135879,0.03,87778.0,87771.0,0.01139328]
[1769437136078,0.03,87776.0,87771.0,0.01139328]
[1769437136276,0.03,87774.0,87771.0,0.01139328]
[1769437136495,0.03,87772.0,87769.0,0.01139354]
[1769437136705,0.03,87772.0,87769.0,0.06836101]
[1769437137414,0.01,87769.0,87752.0,0.01139575]
[1769437137616,0.03,87761.0,87752.0,0.01139575]
[1769437137804,0.03,87761.0,87757.0,0.0113951]
[1769437138454,0.03,87761.0,87756.0,0.03615305]
[1769437138653,0.03,87760.0,87756.0,0.03615305]
[1769437138872,0.03,87760.0,87756.0,0.02475782]
[1769437139569,0.03,87760.0,87754.0,0.01139549]
[1769437139775,0.03,87759.0,87752.0,0.01139575]
[1769437139985,0.03,87759.0,87755.0,0.01139536]
[1769437140210,0.03,87759.0,87755.0,0.02475782]
[1769437140432,0.03,87759.0,87755.0,0.68629679]
[1769437140877,0.03,87758.0,87755.0,0.03615318]
[1769437141096,0.03,87758.0,87755.0,0.0931299]
[1769437141554,0.03,87758.0,87755.0,0.09312995]
[1769437141754,0.03,87757.0,87756.0,0.01139523]
[1769437142402,0.03,87757.0,87755.0,0.03615318]
[1769437142795,0.03,87756.0,87755.0,0.02475782]
[1769437143483,0.03,87756.0,87752.0,0.01139575]
[1769437143698,0.03,87756.0,87753.0,0.01139562]
[1769437143903,0.03,87755.0,87754.0,0.01139549]
[1769437144062,0.38295012,87763.0,87757.0,0.0113951]
[1769437144404,0.11303438,87762.0,87755.0,0.01139536]
[1769437144613,0.38295012,87767.0,87754.0,0.01139549]
[1769437144830,0.03,87763.0,87754.0,0.01139549]
[1769437145038,0.03,87761.0,87754.0,0.01139549]
[1769437145284,0.03,87761.0,87752.0,0.01139575]
[1769437145486,0.03,87761.0,87753.0,0.01139562]
[1769437145691,0.03,87761.0,87752.0,0.06837426]
[1769437145899,0.03,87759.0,87754.0,0.01139549]
[1769437146102,0.03,87759.0,87751.0,0.0361537]
[1769437146352,0.03,87759.0,87751.0,0.02475782]
[1769437146523,0.03,87759.0,87751.0,0.0361537]
[1769437146758,0.03,87759.0,87752.0,0.01139575]
[1769437146963,0.03,87760.0,87753.0,0.01139562]
[1769437147101,0.03,87760.0,87752.0,0.01139575]
[1769437147303,0.03,87760.0,87754.0,0.01139549]
[1769437147503,0.03,87760.0,87755.0,0.01139536]
[1769437147712,0.03,87760.0,87753.0,0.06837337]
[1769437147920,0.03,87764.0,87754.0,0.01139549]
[1769437148173,0.03,87762.0,87754.0,0.04558159]
[1769437148352,0.03,87762.0,87753.0,0.01139562]
[1769437148549,0.03,87762.0,87749.0,0.01139614]
[1769437148767,0.03,87759.0,87751.0,0.01139588]
[1769437149002,0.68978847,87769.0,87754.0,0.06837252]
[1769437149195,0.11298954,87768.0,87753.0,0.01139562]
[1769437149340,0.38295012,87764.0,87753.0,0.01139562]
[1769437149729,0.11298954,87763.0,87753.0,0.01139562]
[1769437149880,0.03,87762.0,87752.0,0.02475782]
[1769437150683,0.03,87762.0,87752.0,0.03615357]
[1769437150887,0.03,87763.0,87752.0,0.03615357]
[1769437151090,0.03,87763.0,87752.0,0.09313232]
[1769437151297,0.03,87763.0,87753.0,0.01139562]
[1769437151909,0.03,87763.0,87752.0,0.03615357]
[1769437152421,0.03,87763.0,87752.0,0.02475782]
[1769437152940,0.03,87763.0,87746.0,0.02623607]
[1769437152941,0.03,87759.0,87746.0,0.02623607]
[1769437153221,0.03,87755.0,87746.0,0.02623607]
[1769437153546,0.03,87755.0,87746.0,0.0376326]
[1769437153902,0.03,87755.0,87747.0,0.0113964]
[1769437154124,0.03,87753.0,87746.0,0.0376326]
[1769437154522,0.38295012,87756.0,87751.0,0.01139588]
[1769437154723,0.38295012,87761.0,87751.0,0.01139588]
[1769437154937,0.11296862,87760.0,87751.0,0.01139588]
[1769437155252,0.03,87758.0,87751.0,0.01139588]
[1769437155672,0.03,87758.0,87750.0,0.06837575]
[1769437155673,0.03,87758.0,87750.0,0.01139601]
[1769437155819,0.03,87758.0,87751.0,0.01139588]
[1769437156164,0.03,87760.0,87751.0,0.01139588]
[1769437156334,0.03,87758.0,87751.0,0.01139588]
[1769437157021,0.03,87758.0,87752.0,0.01139575]
[1769437157440,0.14300144,87757.0,87752.0,0.01139575]
[1769437157620,0.03,87757.0,87752.0,0.04212948]
[1769437157839,0.03,87757.0,87752.0,0.09910821]
[1769437158044,0.03,87757.0,87752.0,0.04212948]
[1769437158395,0.03,87756.0,87752.0,0.04212948]
[1769437159272,0.03,87754.0,87752.0,0.09910819]
[1769437159413,0.03,87754.0,87752.0,0.04212948]
[1769437159872,0.86494847,87766.0,87752.0,0.04212948]
[1769437160037,0.38295012,87762.0,87752.0,0.04212948]
[1769437160240,0.03,87760.0,87753.0,0.01139562]
[1769437160555,0.03,87758.0,87753.0,0.01139562]
[1769437160770,0.03,87756.0,87752.0,0.03073373]
[1769437161332,0.15722797,87762.0,87752.0,0.03073373]
[1769437161531,0.11305969,87761.0,87752.0,0.03073373]
[1769437161769,0.03,87759.0,87747.0,0.0113964]
[1769437161973,0.03,87757.0,87748.0,0.01139627]
[1769437162148,0.03,87755.0,87748.0,0.01139627]
[1769437162352,0.03,87755.0,87747.0,0.0113964]
[1769437163052,0.03,87755.0,87746.0,0.04437912]
[1769437163387,0.38295012,87760.0,87746.0,0.04437912]
[1769437163388,0.03,87754.0,87747.0,0.0113964]
[1769437163897,0.03,87754.0,87746.0,0.03298259]
[1769437164388,0.03,87753.0,87746.0,0.10136149]
[1769437164592,0.03,87753.0,87746.0,0.04437912]
[1769437164793,0.03,87753.0,87746.0,0.03298259]
[1769437165002,0.03,87753.0,87747.0,0.0113964]
[1769437165204,0.03,87753.0,87746.0,0.10136164]
[1769437165419,0.03,87752.0,87747.0,0.04437899]
[1769437165789,0.03,87752.0,87747.0,0.03298259]
[1769437166371,0.03,87751.0,87747.0,0.03298259]
[1769437167300,0.03,87750.0,87747.0,0.03298259]
[1769437167499,0.66238426,87759.0,87747.0,0.03298259]
[1769437167727,0.11315541,87758.0,87747.0,0.04437899]
[1769437168072,0.66238426,87759.0,87747.0,0.04437899]
[1769437168073,0.11315541,87757.0,87747.0,0.04437899]
[1769437168283,0.11315541,87756.0,87747.0,0.03298259]
[1769437168491,0.14315541,87755.0,87747.0,0.04437899]
[1769437168704,0.03,87753.0,87747.0,0.03298259]
[1769437168923,0.03,87751.0,87747.0,0.04437899]
[1769437169387,0.03,87751.0,87726.0,0.17516]
[1769437169605,0.03,87746.0,87740.0,0.08119202]
[1769437169825,0.03,87746.0,87740.0,0.09258933]
[1769437170054,0.03,87746.0,87740.0,0.03560284]
[1769437170272,0.03,87746.0,87740.0,0.02420553]
[1769437170486,0.03,87746.0,87739.0,0.01162614]
[1769437170697,0.03,87745.0,87741.0,0.02420553]
[1769437171547,0.03,87745.0,87739.0,0.0002287]
[1769437171791,0.03,87744.0,87739.0,0.01162614]
[1769437171995,0.03,87744.0,87739.0,0.0002287]
[1769437172427,0.03,87744.0,87739.0,0.01162614]
[1769437172615,0.03,87749.0,87739.0,0.0002287]
[1769437172817,0.03,87747.0,87739.0,0.0002287]
[1769437173029,0.03,87745.0,87739.0,0.0002287]
[1769437173467,0.03,87743.0,87739.0,0.0002287]
[1769437173843,0.03,87743.0,87739.0,0.01162614]
[1769437174268,0.03,87743.0,87739.0,0.0002287]
[1769437174472,1.04533438,87750.0,87739.0,0.0002287]
[1769437174473,0.03,87742.0,87739.0,0.0002287]
[1769437175487,0.03,87741.0,87739.0,0.0002287]
[1769437175658,0.14309507,87741.0,87739.0,0.0002287]
[1769437175858,0.03,87741.0,87739.0,0.0002287]
[1769437176222,0.14309409,87740.0,87739.0,0.0002287]
[1769437176411,0.03,87740.0,87739.0,0.0002287]
[1769437177063,0.14307485,87740.0,87739.0,0.0002287]
[1769437177424,0.08307485,87740.0,87739.0,0.0002287]
[1769437177842,0.03,87740.0,87739.0,0.0002287]
[1769437180373,0.03,87740.0,87739.0,0.0012287]
[1769437180840,0.03,87740.0,87739.0,0.0002287]
[1769437181155,0.031,87740.0,87739.0,0.0002287]
[1769437181712,0.17516,87750.0,87739.0,0.0002287]
[1769437181943,0.001,87740.0,87739.0,0.0002287]
[1769437183099,0.17516,87750.0,87739.0,0.0002287]
[1769437183100,0.0153387,87750.0,87739.0,0.0002287]
[1769437183509,0.67772296,87750.0,87739.0,0.0002287]
[1769437184423,0.66338426,87750.0,87739.0,0.0002287]
[1769437184626,0.66338426,87750.0,87734.0,0.01139808]
[1769437184832,0.66238426,87750.0,87734.0,0.01139808]
[1769437185034,0.66338426,87750.0,87733.0,0.02548733]
[1769437185460,0.17516,87754.0,87729.0,0.01139873]
[1769437185461,0.03,87752.0,87729.0,0.01139873]
[1769437185707,0.03,87740.0,87729.0,0.01139873]
[1769437185916,0.03,87740.0,87677.0,0.020736]
[1769437185917,0.69238426,87738.0,87721.0,0.01139977]
[1769437186119,0.69238426,87738.0,87718.0,0.05700016]
[1769437186346,0.69238426,87738.0,87721.0,0.02420553]
[1769437186610,0.03,87729.0,87718.0,0.01140016]
[1769437186791,0.03,87729.0,87717.0,0.0018236]
[1769437187194,0.03,87729.0,87717.0,0.01322389]
[1769437187397,0.03,87725.0,87717.0,0.0018236]
[1769437187603,0.03,87723.0,87717.0,0.0018236]
[1769437187936,0.03,87723.0,87717.0,3.19e-06]
[1769437188138,0.09058587,87745.0,87732.0,0.01139834]
[1769437188360,0.09058587,87745.0,87730.0,0.0113986]
[1769437188361,0.68591401,87747.0,87730.0,0.0113986]
[1769437188580,0.68591401,87747.0,87732.0,0.01139834]
[1769437188581,0.03,87746.0,87732.0,0.01139834]
[1769437189011,0.66956764,87746.0,87731.0,0.01139847]
[1769437189302,0.03,87744.0,87730.0,0.39485697]
[1769437189503,0.03,87742.0,87730.0,0.39485697]
[1769437189710,0.63956764,87746.0,87730.0,0.39485697]
[1769437189711,0.03,87740.0,87730.0,0.39485697]
[1769437189886,0.03,87738.0,87730.0,0.38345837]
[1769437190070,0.03,87736.0,87730.0,0.39485697]
[1769437190271,0.03,87734.0,87729.0,0.01139873]
[1769437190479,0.03,87734.0,87730.0,0.0113986]
[1769437191370,0.03,87733.0,87730.0,0.0113986]
[1769437191545,0.03,87733.0,87730.0,0.06839135]
[1769437191827,0.03,87733.0,87730.0,0.0113986]
[1769437192188,0.03,87733.0,87729.0,0.01139873]
[1769437192493,0.03,87732.0,87730.0,0.0113986]
[1769437192672,0.03,87732.0,87716.0,0.6724775]
[1769437193003,0.03,87729.0,87719.0,0.01140003]
[1769437194109,0.03,87728.0,87719.0,0.01140003]
[1769437194415,0.03,87728.0,87721.0,0.01139977]
[1769437194602,0.03,87728.0,87719.0,0.01140003]
[1769437194803,0.03,87728.0,87720.0,0.0113999]
[1769437195014,0.03,87728.0,87721.0,0.01139977]
[1769437195207,0.03,87727.0,87720.0,0.0113999]
[1769437195502,0.03,87727.0,87721.0,0.01139977]
[1769437195714,0.03,87727.0,87721.0,0.05699846]
[1769437195915,0.03,87727.0,87723.0,0.66107708]
[1769437196120,0.03,87736.0,87723.0,0.66107708]
[1769437196281,0.05484614,87734.0,87719.0,0.01140003]
[1769437196489,0.03,87732.0,87720.0,0.0113999]
[1769437196688,0.03,87730.0,87721.0,0.01139977]
[1769437196895,0.03,87730.0,87720.0,0.06839881]
[1769437196896,0.03,87730.0,87720.0,0.0113999]
[1769437197096,0.03,87730.0,87721.0,0.01139977]
[1769437197488,0.03,87730.0,87722.0,0.01139964]
[1769437197698,0.03,87729.0,87722.0,0.01139964]
[1769437197930,0.03,87729.0,87721.0,0.01139977]
[1769437198148,0.03,87729.0,87720.0,0.0113999]
[1769437198360,0.03,87729.0,87721.0,0.01139977]
[1769437198861,0.03,87728.0,87720.0,0.0113999]
[1769437199230,0.03,87728.0,87722.0,0.01139964]
[1769437199454,0.03,87728.0,87721.0,0.01139977]
[1769437199667,0.38345837,87740.0,87723.0,0.01139951]
[1769437199966,0.14293534,87739.0,87724.0,0.72947305]
[1769437200166,0.09058587,87744.0,87724.0,0.72947305]
[1769437200167,0.1731437,87748.0,87725.0,0.01139925]
[1769437200380,0.02484614,87744.0,87724.0,0.66107708]
[1769437200550,0.66441378,87742.0,87724.0,0.67247646]
[1769437200752,0.02484614,87741.0,87724.0,0.67247646]
[1769437200973,0.02484614,87741.0,87724.0,0.66107708]
[1769437201175,0.03,87740.0,87724.0,0.66107708]
[1769437201714,0.03,87738.0,87725.0,0.01139925]
[1769437201964,0.03,87738.0,87726.0,0.66107708]
[1769437202204,0.02484614,87747.0,87729.0,0.66107708]
[1769437202362,0.02484614,87747.0,87731.0,0.66107708]
[1769437202730,0.03,87744.0,87728.0,0.01139886]
[1769437202962,0.03,87742.0,87727.0,0.01139899]
[1769437203184,0.03,87742.0,87728.0,0.01139886]
[1769437203424,0.03,87742.0,87728.0,0.05699428]
[1769437203595,0.03,87742.0,87726.0,0.01139912]
[1769437203596,0.03,87742.0,87727.0,0.05699473]
[1769437203800,0.03,87742.0,87728.0,0.01139886]
[1769437203977,0.03,87742.0,87727.0,0.01139899]
[1769437204180,0.03,87742.0,87728.0,0.66107708]
[1769437204724,0.03,87742.0,87729.0,0.66107708]
[1769437204928,0.03,87742.0,87727.0,0.68375736]
[1769437205071,0.03,87741.0,87728.0,0.02268028]
[1769437205274,0.63956764,87747.0,87728.0,0.02268028]
[1769437205275,0.03,87739.0,87728.0,0.68375736]
[1769437206662,0.031,87739.0,87728.0,0.68375736]
[1769437206918,0.031,87739.0,87728.0,0.66107708]
[1769437207278,0.03,87739.0,87728.0,0.66107708]
[1769437207483,0.03,87738.0,87728.0,0.66107708]
[1769437207922,0.03,87738.0,87728.0,0.58059969]
[1769437208076,0.03,87738.0,87725.0,0.01139925]
[1769437208279,0.03,87738.0,87723.0,0.03407979]
[1769437208483,0.03,87737.0,87724.0,0.01139938]
[1769437208691,0.03,87737.0,87725.0,0.01139925]
[1769437209128,0.03,87737.0,87726.0,0.01139912]
[1769437209341,0.03,87737.0,87725.0,0.01139925]
[1769437209697,0.03,87733.0,87724.0,0.01139938]
[1769437209898,0.03,87733.0,87722.0,0.1752]
[1769437210120,0.03,87733.0,87722.0,0.18659964]
[1769437210643,0.02484614,87718.0,87713.0,0.0002]
[1769437210843,0.05484614,87713.0,87712.0,0.0002281]
[1769437211364,0.69441378,87713.0,87697.0,0.66107708]
[1769437211565,0.03,87709.0,87698.0,0.66130518]
[1769437212216,0.02484614,87713.0,87698.0,0.66130518]
[1769437212217,0.03,87707.0,87698.0,0.67270794]
[1769437212414,0.03,87707.0,87698.0,0.66130518]
[1769437212618,0.03,87707.0,87698.0,0.69538822]
[1769437212775,0.02484614,87718.0,87699.0,0.68375736]
[1769437212978,0.11290703,87717.0,87699.0,0.68375736]
[1769437213182,0.11290703,87716.0,87699.0,0.68375736]
[1769437213379,0.02484614,87718.0,87699.0,0.68375736]
[1769437213380,0.03,87714.0,87699.0,0.68375736]
[1769437213580,0.32582119,87720.0,87699.0,0.68375736]
[1769437213784,0.63956764,87718.0,87699.0,0.68375736]
[1769437214005,0.66441378,87716.0,87699.0,0.02268028]
[1769437214185,0.02484614,87715.0,87699.0,0.02268028]
[1769437214623,0.03,87714.0,87699.0,0.02268028]
[1769437215387,0.03,87714.0,87699.0,0.68375736]
[1769437215589,0.03,87713.0,87700.0,0.02268028]
[1769437215807,0.03,87713.0,87700.0,0.68375736]
[1769437216666,0.03,87712.0,87700.0,0.68375736]
[1769437217429,0.03,87710.0,87700.0,0.68375736]
[1769437217831,1.04787215,87720.0,87700.0,0.68375736]
[1769437217832,0.63956764,87719.0,87700.0,0.66107708]
[1769437218059,0.63956764,87719.0,87701.0,0.02268028]
[1769437218481,0.03,87718.0,87701.0,0.02268028]
[1769437218684,0.03,87718.0,87702.0,0.02485199]
[1769437219039,0.41483238,87719.0,87702.0,0.02485199]
[1769437219632,0.03,87719.0,87707.0,0.01140159]
[1769437219868,0.03,87719.0,87704.0,0.08186192]
[1769437220185,0.03,87719.0,87705.0,0.03625384]
[1769437220481,0.03,87719.0,87705.0,0.02485199]
[1769437220696,0.03,87721.0,87705.0,0.03625384]
[1769437220891,0.03,87719.0,87706.0,0.01140172]
[1769437221094,0.001,87718.0,87706.0,0.01140172]
[1769437221301,0.001,87718.0,87705.0,0.03625384]
[1769437221454,0.03,87719.0,87705.0,0.02485199]
[1769437221862,0.03,87719.0,87705.0,0.03625384]
[1769437222294,0.03,87719.0,87706.0,0.01140172]
[1769437222551,0.03,87719.0,87705.0,0.03625384]
[1769437222695,0.03,87719.0,87706.0,0.01140172]
[1769437223717,0.03,87719.0,87707.0,0.02485199]
[1769437224256,0.03,87718.0,87701.0,0.06841361]
[1769437224392,0.03,87716.0,87702.0,0.05701085]
[1769437224593,0.03,87716.0,87701.0,0.01140237]
[1769437224798,0.03,87716.0,87701.0,0.06841412]
[1769437225338,0.03,87714.0,87701.0,0.06841412]
[1769437225538,0.03,87714.0,87702.0,0.01140224]
[1769437225859,0.03,87714.0,87701.0,0.06841403]
[1769437226184,0.03,87714.0,87700.0,0.06841494]
[1769437226407,0.03,87716.0,87701.0,0.01140237]
[1769437226610,0.03,87716.0,87699.0,0.06841552]
[1769437226830,0.05452015,87716.0,87699.0,0.06841552]
[1769437227352,0.03,87714.0,87698.0,0.01163086]
[1769437227505,0.03,87712.0,87698.0,0.0002281]
[1769437228333,0.03,87712.0,87698.0,0.01163086]
[1769437228706,0.03,87712.0,87698.0,0.0002281]
[1769437228906,0.03,87711.0,87698.0,0.01163086]
[1769437229116,0.03,87711.0,87698.0,0.06864458]
[1769437229320,0.03,87711.0,87698.0,0.01163086]
[1769437229593,0.03,87711.0,87699.0,0.01140263]
[1769437230002,0.03,87711.0,87700.0,0.0114025]
[1769437230505,0.03,87711.0,87701.0,0.0570116]
[1769437230903,0.04564,87728.0,87700.0,0.06841495]
[1769437230904,0.19765147,87743.0,87711.0,0.0002281]
[1769437231070,0.02452015,87737.0,87715.0,0.68702423]
[1769437231271,0.38345837,87730.0,87716.0,0.02485199]